bitfinex-derivatives/quotes_BTCF0:USTF0_20250121
["timestamp","ask_amount","ask_price","bid_price","bid_amount"]
[1737471072216,0.36094407,103790.0,103760.0,1.0808]
[1737471072417,0.3608,103780.0,103740.0,0.409046]
[1737471072616,0.048242,103750.0,103740.0,0.409046]
[1737471072821,0.048242,103750.0,103740.0,0.0241261]
[1737471073724,0.61608396,103750.0,103730.0,0.00014407]
[1737471073921,0.048247,103740.0,103730.0,0.00014407]
[1737471074122,0.048243,103750.0,103730.0,0.40919607]
[1737471074423,0.048243,103750.0,103740.0,0.008]
[1737471074821,0.048243,103750.0,103730.0,0.3608]
[1737471075127,0.048243,103750.0,103730.0,0.409051]
[1737471075326,0.048243,103750.0,103730.0,0.42413337]
[1737471075929,0.36094407,103760.0,103740.0,0.3608]
[1737471076113,0.00014407,103760.0,103740.0,0.01508237]
[1737471076319,0.40918407,103760.0,103740.0,0.06332837]
[1737471076623,0.04838407,103760.0,103740.0,0.06332837]
[1737471076921,0.00014407,103760.0,103750.0,0.409042]
[1737471077126,0.21158459,103800.0,103750.0,0.769842]
[1737471077322,0.57238459,103800.0,103760.0,0.3608]
[1737471077513,0.61606596,103790.0,103750.0,0.3608]
[1737471077720,0.048237,103770.0,103750.0,0.409041]
[1737471077923,0.048237,103770.0,103750.0,0.37596773]
[1737471078126,0.04823,103780.0,103760.0,0.048238]
[1737471078319,0.00014407,103770.0,103760.0,0.42412037]
[1737471078525,0.00014407,103770.0,103760.0,0.06332037]
[1737471078727,0.04837707,103770.0,103760.0,0.01508237]
[1737471079118,0.04837707,103770.0,103760.0,0.06332037]
[1737471079119,0.00014407,103770.0,103760.0,0.06332037]
[1737471079316,0.00014407,103770.0,103760.0,0.63116233]
[1737471079520,0.14822,103800.0,103780.0,0.048227]
[1737471079722,0.1,103800.0,103790.0,0.409024]
[1737471079925,0.148224,103800.0,103780.0,0.3608]
[1737471080229,0.148224,103800.0,103780.0,0.409028]
[1737471080422,0.148224,103800.0,103790.0,0.048224]
[1737471080624,0.10014407,103800.0,103790.0,0.409024]
[1737471080923,0.10614407,103800.0,103780.0,0.36102734]
[1737471081129,0.15436407,103800.0,103790.0,0.048224]
[1737471081331,0.15436407,103800.0,103780.0,0.40917107]
[1737471081525,0.15436407,103800.0,103780.0,0.40916907]
[1737471081726,0.048224,103790.0,103780.0,0.40916907]
[1737471081921,0.10614407,103800.0,103790.0,0.048224]
[1737471082133,0.10614407,103800.0,103790.0,0.409024]
[1737471082333,0.10614407,103800.0,103790.0,1.129024]
[1737471082834,0.15336307,103800.0,103790.0,1.129024]
[1737471083229,0.048224,103790.0,103780.0,0.67104407]
[1737471083428,0.048224,103790.0,103780.0,0.71927207]
[1737471083935,0.048224,103790.0,103780.0,0.62290234]
[1737471084131,0.048228,103780.0,103770.0,0.409031]
[1737471084336,0.048233,103770.0,103750.0,0.41048669]
[1737471084636,0.409038,103760.0,103750.0,0.00144569]
[1737471084827,0.048238,103760.0,103750.0,0.01652472]
[1737471085022,0.56784196,103780.0,103750.0,0.42556672]
[1737471085228,0.04837707,103770.0,103760.0,0.409036]
[1737471085528,0.04837707,103770.0,103760.0,0.3608]
[1737471085728,0.04837707,103770.0,103760.0,0.37587903]
[1737471086024,0.04837707,103770.0,103760.0,0.01507903]
[1737471086229,0.40917707,103770.0,103750.0,0.00158976]
[1737471086425,0.25527996,103760.0,103750.0,0.00014407]
[1737471086921,0.048238,103760.0,103750.0,0.048242]
[1737471087126,0.05137807,103770.0,103750.0,0.048239]
[1737471087322,0.00314407,103770.0,103760.0,0.769838]
[1737471087529,0.048225,103790.0,103770.0,0.048233]
[1737471087723,0.1,103800.0,103780.0,0.3608]
[1737471088032,0.1,103800.0,103790.0,0.61606596]
[1737471088233,0.11303033,103810.0,103800.0,0.048219]
[1737471088432,0.11303033,103810.0,103800.0,0.409019]
[1737471088740,0.3163,103850.0,103800.0,0.409015]
[1737471088924,0.048198,103850.0,103840.0,0.0482]
[1737471089123,0.19463564,103870.0,103840.0,0.409]
[1737471089322,0.19463564,103870.0,103840.0,0.3608]
[1737471089526,0.048196,103850.0,103840.0,0.3608]
[1737471089724,0.048196,103850.0,103840.0,0.409]
[1737471089935,0.052196,103850.0,103840.0,0.409]
[1737471090131,0.004,103850.0,103840.0,0.0482]
[1737471090338,0.004,103850.0,103840.0,1.129]
[1737471090734,0.048191,103860.0,103850.0,0.048196]
[1737471091626,0.048196,103850.0,103840.0,0.768199]
[1737471091941,0.0482,103840.0,103830.0,0.40914807]
[1737471092133,0.048192,103860.0,103850.0,0.048193]
[1737471092337,0.048188,103870.0,103860.0,0.048189]
[1737471092631,0.04833207,103870.0,103860.0,0.768189]
[1737471092835,0.04833207,103870.0,103860.0,1.128989]
[1737471092836,0.00014407,103870.0,103860.0,1.128989]
[1737471093132,0.36094407,103870.0,103860.0,0.72]
[1737471093336,0.36094407,103870.0,103850.0,0.04833907]
[1737471093337,0.048191,103860.0,103850.0,0.04833907]
[1737471093526,0.408991,103860.0,103850.0,0.00014407]
[1737471093931,0.61603296,103860.0,103850.0,0.00014407]
[1737471094130,0.0482,103840.0,103830.0,0.00144452]
[1737471094428,0.3608,103850.0,103830.0,0.04964952]
[1737471094630,0.0482,103840.0,103830.0,0.00144452]
[1737471094836,0.56784196,103840.0,103810.0,0.048214]
[1737471095140,0.409002,103840.0,103820.0,0.048209]
[1737471095441,0.36094407,103840.0,103810.0,0.3608]
[1737471095640,0.40914607,103840.0,103820.0,0.048208]
[1737471095834,0.00014407,103840.0,103830.0,0.048205]
[1737471096140,0.40914507,103840.0,103810.0,0.3608]
[1737471096342,0.40914507,103840.0,103820.0,0.048205]
[1737471096632,0.00014407,103840.0,103830.0,0.409005]
[1737471096836,0.00414407,103840.0,103830.0,0.768205]
[1737471097236,0.00414407,103840.0,103830.0,0.048205]
[1737471097433,0.00414407,103840.0,103830.0,0.409005]
[1737471097634,0.00414407,103840.0,103830.0,1.129005]
[1737471098426,0.00414407,103840.0,103830.0,1.33604696]
[1737471098636,0.408991,103860.0,103850.0,0.048196]
[1737471099140,0.3608,103860.0,103840.0,0.3608]
[1737471099438,0.3608,103860.0,103850.0,0.048196]
[1737471100039,0.40913207,103870.0,103860.0,0.048191]
[1737471100242,0.36094407,103870.0,103860.0,0.048191]
[1737471100541,0.40913107,103870.0,103860.0,0.048191]
[1737471100725,0.40913107,103870.0,103850.0,0.048194]
[1737471100932,0.36094407,103870.0,103860.0,0.048191]
[1737471101427,0.41413207,103870.0,103850.0,0.048195]
[1737471102029,0.36594407,103870.0,103860.0,0.048191]
[1737471102231,0.36594407,103870.0,103850.0,0.048192]
[1737471102430,0.41413207,103870.0,103850.0,0.048192]
[1737471102631,0.41413207,103870.0,103850.0,0.816385]
[1737471102831,0.40913207,103870.0,103860.0,0.048191]
[1737471103033,0.41313207,103870.0,103850.0,0.768192]
[1737471103233,0.00414407,103870.0,103860.0,0.408991]
[1737471103634,0.36494407,103870.0,103860.0,0.048191]
[1737471103942,0.41313107,103870.0,103860.0,0.048191]
[1737471104533,0.048191,103860.0,103850.0,0.768195]
[1737471104735,0.048196,103850.0,103840.0,0.00014407]
[1737471105044,0.408996,103850.0,103840.0,0.00014407]
[1737471105338,0.3608,103850.0,103840.0,0.0482]
[1737471105540,0.41313207,103870.0,103850.0,0.048192]
[1737471106039,0.40913207,103870.0,103850.0,0.048192]
[1737471106249,0.004,103860.0,103850.0,0.048192]
[1737471106936,0.41313207,103870.0,103850.0,0.048192]
[1737471107141,0.00414407,103870.0,103860.0,0.3608]
[1737471107443,0.00414407,103870.0,103860.0,0.408991]
[1737471107642,0.00014407,103870.0,103860.0,0.408991]
[1737471108236,0.00014407,103870.0,103860.0,0.048191]
[1737471109142,0.00014407,103870.0,103860.0,0.408991]
[1737471109341,0.00414407,103870.0,103860.0,0.048191]
[1737471109541,0.00414407,103870.0,103860.0,0.408991]
[1737471110440,0.05233107,103870.0,103860.0,0.048191]
[1737471110642,0.05233107,103870.0,103860.0,0.768191]
[1737471110840,0.05233107,103870.0,103860.0,0.048191]
[1737471111341,0.05233107,103870.0,103860.0,0.72]
[1737471111542,0.05233107,103870.0,103860.0,0.768191]
[1737471112045,0.0482,103850.0,103830.0,0.0112728]
[1737471112243,0.409,103840.0,103830.0,0.00144456]
[1737471113243,0.56798603,103850.0,103840.0,0.0482]
[1737471113244,0.00114407,103850.0,103840.0,0.0482]
[1737471113448,0.04934007,103850.0,103840.0,0.0482]
[1737471113634,0.36194407,103850.0,103840.0,0.0482]
[1737471113835,0.00014407,103850.0,103840.0,0.0482]
[1737471114039,0.00014407,103850.0,103840.0,0.25524196]
[1737471114647,0.40914007,103850.0,103840.0,0.0482]
[1737471115248,0.40914307,103850.0,103830.0,0.76964756]
[1737471115637,0.409,103840.0,103830.0,0.00144456]
[1737471116741,0.91604196,103840.0,103820.0,0.00054651]
[1737471116940,0.04821,103820.0,103810.0,0.72]
[1737471117143,0.40901,103820.0,103810.0,0.72]
[1737471117338,0.40901,103820.0,103800.0,0.21946736]
[1737471117944,0.3608,103820.0,103810.0,0.048214]
[1737471118338,0.3608,103820.0,103810.0,0.728214]
[1737471118845,0.36094407,103830.0,103810.0,0.728214]
[1737471119053,0.00014407,103830.0,103820.0,0.04821]
[1737471119747,1.06698212,103860.0,103820.0,0.66415787]
[1737471119748,0.14094616,103860.0,103820.0,0.66415787]
[1737471119941,0.14094616,103860.0,103850.0,0.048196]
[1737471120145,0.14094616,103860.0,103850.0,0.408996]
[1737471120447,0.14094616,103860.0,103840.0,0.61604196]
[1737471120654,0.14094616,103860.0,103850.0,0.048196]
[1737471120949,0.02765023,103860.0,103850.0,0.408996]
[1737471121266,0.1,103900.0,103890.0,0.048177]
[1737471121456,0.19463564,103920.0,103910.0,0.048168]
[1737471121654,0.19463564,103920.0,103910.0,0.61600996]
[1737471122553,0.22378311,103930.0,103920.0,0.048163]
[1737471122746,0.22233889,103930.0,103920.0,0.408963]
[1737471123045,0.24996917,103940.0,103930.0,0.048159]
[1737471123354,0.27774352,103950.0,103940.0,0.048154]
[1737471123543,0.27774352,103950.0,103940.0,0.3608]
[1737471123745,0.27774352,103950.0,103940.0,0.408954]
[1737471124748,0.048154,103940.0,103930.0,0.68066407]
[1737471124947,0.61599596,103940.0,103900.0,0.20704196]
[1737471125149,0.048166,103920.0,103900.0,0.04817]
[1737471125452,0.048173,103900.0,103890.0,0.408976]
[1737471125646,0.408969,103910.0,103900.0,0.048173]
[1737471125844,0.685,103940.0,103910.0,0.048165]
[1737471126160,0.048163,103920.0,103910.0,0.048165]
[1737471126453,0.408963,103920.0,103910.0,0.00014407]
[1737471127755,0.048163,103920.0,103910.0,0.00014407]
[1737471127958,0.408963,103920.0,103910.0,0.00014407]
[1737471128347,0.3608,103930.0,103910.0,0.00014407]
[1737471128548,0.048163,103920.0,103910.0,0.00014407]
[1737471128753,0.408963,103920.0,103910.0,0.00014407]
[1737471129259,0.410963,103920.0,103910.0,0.00014407]
[1737471129451,0.3628,103920.0,103900.0,0.1232517]
[1737471129662,0.3628,103920.0,103900.0,0.1714247]
[1737471129851,0.3628,103920.0,103900.0,0.1232517]
[1737471130051,0.40897,103910.0,103890.0,0.728177]
[1737471130353,0.3638,103920.0,103890.0,0.728177]
[1737471130354,0.3638,103920.0,103900.0,0.25521496]
[1737471130549,0.3638,103920.0,103910.0,0.048168]
[1737471130945,0.332544,103950.0,103930.0,0.048159]
[1737471130946,0.741494,103950.0,103930.0,0.048159]
[1737471131458,0.00014407,103930.0,103920.0,0.408963]
[1737471131757,0.001444,103950.0,103940.0,0.048154]
[1737471132355,0.049594,103950.0,103930.0,0.25534403]
[1737471132559,0.002,103920.0,103910.0,0.5680123]
[1737471132756,0.002,103920.0,103910.0,0.25520996]
[1737471132961,0.002,103920.0,103910.0,0.61600996]
[1737471133154,0.002,103920.0,103910.0,0.91600996]
[1737471133354,0.048156,103940.0,103910.0,0.56784196]
[1737471133557,0.048156,103940.0,103920.0,0.048163]
[1737471133558,0.048163,103930.0,103920.0,0.048163]
[1737471133861,0.04830007,103940.0,103930.0,0.048158]
[1737471134057,0.04829807,103940.0,103930.0,0.20704196]
[1737471134259,0.048159,103930.0,103920.0,0.048162]
[1737471134551,0.36094407,103940.0,103910.0,0.61615203]
[1737471134748,0.048162,103930.0,103920.0,0.048163]
[1737471134952,0.048163,103920.0,103910.0,0.68014407]
[1737471135259,0.408963,103920.0,103910.0,0.00014407]
[1737471135457,0.048168,103910.0,103900.0,0.00144369]
[1737471135756,0.048168,103910.0,103890.0,0.46559332]
[1737471135757,0.048173,103900.0,103890.0,0.46559332]
[1737471135955,0.6825,103910.0,103890.0,0.51377032]
[1737471136160,0.369872,103910.0,103890.0,1.19377032]
[1737471136361,0.408972,103910.0,103890.0,1.35263528]
[1737471136659,0.40911607,103910.0,103890.0,1.40081228]
[1737471136862,0.408973,103900.0,103890.0,0.46559332]
[1737471137053,0.412973,103900.0,103890.0,0.46559332]
[1737471137255,0.3648,103900.0,103890.0,0.51377032]
[1737471137457,0.412973,103900.0,103890.0,1.14559332]
[1737471137658,0.412973,103900.0,103890.0,0.46559332]
[1737471138165,0.412973,103900.0,103890.0,1.14559332]
[1737471138352,0.412973,103900.0,103880.0,0.33884012]
[1737471138556,0.6829,103890.0,103860.0,0.26755978]
[1737471138759,0.752974,103900.0,103880.0,0.048182]
[1737471139063,0.3608,103900.0,103890.0,0.048177]
[1737471139369,0.048177,103890.0,103880.0,0.728181]
[1737471139556,0.3608,103890.0,103880.0,0.68]
[1737471139756,0.00012032,103890.0,103880.0,0.728182]
[1737471139957,0.40909732,103890.0,103880.0,0.728182]
[1737471140159,0.36092032,103890.0,103880.0,0.728182]
[1737471140463,0.00012032,103890.0,103880.0,0.728182]
[1737471140865,0.04829732,103890.0,103880.0,0.68]
[1737471141162,0.408977,103890.0,103880.0,0.68]
[1737471141558,0.00010366,103890.0,103880.0,0.728178]
[1737471141765,0.00010366,103890.0,103880.0,0.88707823]
[1737471142157,0.04828066,103890.0,103880.0,0.68003627]
[1737471142459,0.36090366,103890.0,103880.0,0.001]
[1737471142768,0.3608,103890.0,103880.0,0.631]
[1737471142967,0.408977,103890.0,103880.0,0.631]
[1737471143157,0.408977,103890.0,103880.0,0.679182]
[1737471143359,0.04826932,103890.0,103880.0,0.679182]
[1737471143663,9.232e-05,103890.0,103880.0,0.88622396]
[1737471144160,0.04827032,103890.0,103880.0,0.679182]
[1737471144858,9.232e-05,103890.0,103880.0,0.048182]
[1737471145059,0.36089232,103890.0,103880.0,0.048182]
[1737471145457,9.232e-05,103890.0,103880.0,0.048182]
[1737471145657,9.232e-05,103890.0,103880.0,0.628182]
[1737471145858,9.232e-05,103890.0,103880.0,0.83522396]
[1737471146160,0.04831707,103900.0,103890.0,0.048177]
[1737471146161,0.00014407,103900.0,103890.0,0.048177]
[1737471146557,0.00014407,103900.0,103890.0,0.408977]
[1737471147051,0.21702833,103930.0,103900.0,0.04817]
[1737471147254,0.57782833,103930.0,103920.0,0.048163]
[1737471147463,0.21702833,103930.0,103920.0,0.048163]
[1737471147660,0.16886633,103930.0,103920.0,0.408963]
[1737471147862,0.19701072,103950.0,103940.0,0.048154]
[1737471148058,0.048142,103970.0,103940.0,0.61599596]
[1737471148260,0.048142,103970.0,103960.0,0.048145]
[1737471148454,0.04828607,103970.0,103960.0,0.988945]
[1737471148765,0.04828607,103970.0,103960.0,0.628145]
[1737471149266,0.41308607,103970.0,103960.0,0.58]
[1737471149559,0.41308607,103970.0,103920.0,0.20848532]
[1737471149560,0.71308607,103970.0,103920.0,0.20848532]
[1737471149765,0.408959,103930.0,103920.0,0.04960636]
[1737471149960,0.769759,103930.0,103900.0,0.048173]
[1737471150163,0.048168,103910.0,103900.0,0.048173]
[1737471150355,0.408968,103910.0,103900.0,0.048173]
[1737471150563,0.048164,103920.0,103910.0,0.048168]
[1737471150758,0.408964,103920.0,103910.0,0.048168]
[1737471150958,0.04830807,103920.0,103910.0,0.048168]
[1737471151362,0.00014407,103920.0,103910.0,0.048168]
[1737471151865,0.408947,103960.0,103940.0,0.096305]
[1737471152064,0.048154,103940.0,103930.0,0.048158]
[1737471152266,0.3608,103940.0,103910.0,0.20704196]
[1737471152566,0.048168,103910.0,103900.0,0.391672]
[1737471152762,0.408965,103920.0,103900.0,0.439841]
[1737471153071,0.36094407,103920.0,103900.0,0.7043]
[1737471153270,0.40911007,103920.0,103900.0,0.3435]
[1737471153462,0.00014407,103920.0,103910.0,0.61600996]
[1737471153663,0.11319597,103930.0,103920.0,0.048163]
[1737471153860,0.51454702,103970.0,103920.0,0.408963]
[1737471154065,0.55850336,103970.0,103960.0,0.048145]
[1737471154262,0.19770336,103970.0,103960.0,0.048145]
[1737471154571,0.19770336,103970.0,103960.0,0.408945]
[1737471155066,0.19770336,103970.0,103960.0,0.048145]
[1737471155866,0.20170336,103970.0,103960.0,0.048145]
[1737471156265,0.20170336,103970.0,103960.0,0.628145]
[1737471156468,0.20170336,103970.0,103960.0,0.988945]
[1737471156862,0.20170336,103970.0,103960.0,0.94080327]
[1737471157060,0.22536166,103980.0,103960.0,1.72153448]
[1737471157262,0.1,104000.0,103980.0,0.048136]
[1737471157568,0.52949142,104030.0,104020.0,0.048117]
[1737471157770,0.48137742,104030.0,104020.0,0.408917]
[1737471158068,0.48137742,104030.0,104020.0,0.048117]
[1737471158471,0.048117,104020.0,104010.0,0.00014407]
[1737471158666,0.408917,104020.0,104010.0,0.00014407]
[1737471159975,0.61740191,104020.0,103980.0,0.048136]
[1737471160269,0.408932,103990.0,103970.0,0.04958167]
[1737471160474,0.3608,103990.0,103970.0,0.04958167]
[1737471160674,0.408928,104000.0,103980.0,0.25517696]
[1737471161070,0.40907207,104000.0,103980.0,0.25532103]
[1737471161265,0.048131,103990.0,103980.0,0.25532103]
[1737471161462,0.048131,103990.0,103980.0,0.04827907]
[1737471161662,0.409931,103990.0,103980.0,0.04827907]
[1737471162365,0.409931,103990.0,103980.0,0.00014407]
[1737471162562,0.049131,103990.0,103980.0,0.00014407]
[1737471162974,0.049131,103990.0,103960.0,1.14793096]
[1737471163176,0.049131,103990.0,103970.0,0.048139]
[1737471163565,0.409931,103990.0,103970.0,0.048139]
[1737471163767,0.409931,103990.0,103960.0,0.580089]
[1737471163768,0.3608,103980.0,103960.0,0.580089]
[1737471164074,0.40894,103970.0,103960.0,0.58023307]
[1737471164468,0.04828107,103980.0,103960.0,0.94103307]
[1737471164667,0.00014407,103980.0,103960.0,0.94103307]
[1737471164862,0.00014407,103980.0,103970.0,0.40894]
[1737471165271,0.002,103990.0,103980.0,0.048136]
[1737471165463,0.002,103990.0,103980.0,0.25517796]
[1737471165670,0.048131,103990.0,103970.0,0.704739]
[1737471165971,0.3608,104000.0,103970.0,0.704739]
[1737471165972,0.048127,104000.0,103980.0,0.20704196]
[1737471166175,0.3608,104010.0,104000.0,0.048126]
[1737471166378,0.408922,104010.0,104000.0,0.048126]
[1737471167874,0.408922,104010.0,103990.0,0.00014407]
[1737471167875,0.048126,104000.0,103990.0,0.00014407]
[1737471168464,0.408922,104010.0,104000.0,0.048126]
[1737471168665,0.408922,104010.0,103990.0,0.25531503]
[1737471168871,0.411922,104010.0,103990.0,0.25531503]
[1737471169071,0.411922,104010.0,103990.0,0.2071733]
[1737471169267,0.411922,104010.0,104000.0,0.628126]
[1737471169567,0.003,104010.0,104000.0,0.628126]
[1737471169769,0.003,104010.0,104000.0,0.988926]
[1737471170070,0.00014407,104020.0,104010.0,0.048122]
[1737471170281,0.00014407,104020.0,104010.0,0.25516396]
[1737471171984,0.048122,104010.0,104000.0,0.628125]
[1737471172277,0.41206507,104020.0,104000.0,0.048126]
[1737471172467,0.36394407,104020.0,103990.0,0.25531503]
[1737471172664,0.36394407,104020.0,103990.0,0.61611403]
[1737471172970,0.00314407,104020.0,104010.0,0.25516396]
[1737471173167,0.41034233,104060.0,104010.0,1.09784196]
[1737471173366,0.408906,104050.0,104040.0,0.048106]
[1737471174074,0.3608,104050.0,104030.0,0.56784196]
[1737471174272,0.3623864,104060.0,104040.0,0.048108]
[1737471174473,0.4104854,104060.0,104050.0,0.048103]
[1737471175077,0.00014407,104060.0,104030.0,0.45716107]
[1737471175379,0.00014407,104060.0,104050.0,0.408903]
[1737471175578,7e-08,104060.0,104050.0,0.408903]
[1737471175774,7e-08,104060.0,104050.0,0.750803]
[1737471176079,7e-08,104060.0,104050.0,0.84691525]
[1737471176286,7e-08,104060.0,104050.0,1.14691525]
[1737471176980,7e-08,104060.0,104050.0,0.750803]
[1737471177680,0.04809907,104060.0,104050.0,0.750803]
[1737471177872,7e-08,104060.0,104050.0,0.75025833]
[1737471178075,7e-08,104060.0,104050.0,0.7021166]
[1737471178381,7e-08,104060.0,104050.0,0.7502196]
[1737471178579,7e-08,104060.0,104050.0,0.408903]
[1737471178884,0.36080007,104060.0,104050.0,0.048103]
[1737471179079,7e-08,104060.0,104050.0,0.048103]
[1737471179282,0.3608,104090.0,104050.0,0.408903]
[1737471179481,0.408885,104090.0,104070.0,0.25513296]
[1737471179673,0.048085,104090.0,104070.0,0.25513296]
[1737471180080,0.048085,104090.0,104080.0,0.048089]
[1737471180273,0.1,104100.0,104090.0,0.048085]
[1737471180479,0.57784342,104140.0,104120.0,0.048069]
[1737471180784,0.90864342,104140.0,104120.0,0.048069]
[1737471180979,0.048066,104130.0,104120.0,0.04821307]
[1737471181297,0.16912349,104140.0,104130.0,0.048066]
[1737471181474,0.21718549,104140.0,104130.0,0.048066]
[1737471181781,0.16912349,104140.0,104130.0,0.048066]
[1737471182080,0.048066,104130.0,104120.0,0.43014407]
[1737471182482,0.408866,104130.0,104120.0,0.00014407]
[1737471182785,0.6633,104130.0,104100.0,0.048079]
[1737471182977,0.408876,104110.0,104090.0,0.048084]
[1737471183171,0.408876,104110.0,104070.0,0.048091]
[1737471183172,0.048086,104090.0,104070.0,0.048091]
[1737471183377,0.408886,104090.0,104080.0,0.048089]
[1737471183886,0.408886,104090.0,104070.0,0.04823707]
[1737471184080,0.048089,104080.0,104070.0,0.00014407]
[1737471184282,0.3608,104080.0,104070.0,0.20704196]
[1737471184481,0.00014407,104100.0,104090.0,0.048085]
[1737471184785,7e-08,104100.0,104090.0,0.61592696]
[1737471185086,0.40886,104150.0,104140.0,0.048062]
[1737471185386,0.40886,104150.0,104110.0,0.20704196]
[1737471185580,0.3608,104140.0,104120.0,0.04807]
[1737471185779,0.408866,104130.0,104120.0,0.04807]
[1737471185985,0.048074,104120.0,104100.0,0.04951997]
[1737471186174,0.408874,104120.0,104100.0,0.04951997]
[1737471186374,0.3608,104110.0,104100.0,0.04951997]
[1737471186580,0.048074,104120.0,104100.0,0.04966404]
[1737471186876,0.00014407,104120.0,104110.0,0.048076]
[1737471187278,0.36094407,104120.0,104100.0,0.00151931]
[1737471187584,0.36094407,104120.0,104110.0,0.048075]
[1737471187781,0.00014407,104120.0,104110.0,0.61591696]
[1737471188983,0.33794125,104170.0,104110.0,1.01196459]
[1737471189175,0.84050405,104230.0,104180.0,0.048043]
[1737471189373,0.83978405,104230.0,104190.0,0.20704196]
[1737471189575,0.048031,104210.0,104200.0,0.048034]
[1737471189773,0.408831,104210.0,104200.0,0.048034]
[1737471189977,0.048034,104200.0,104190.0,0.04818207]
[1737471190188,0.048034,104200.0,104190.0,0.00014407]
[1737471190382,0.408834,104200.0,104150.0,0.99792961]
[1737471190575,0.048048,104170.0,104160.0,0.048052]
[1737471191183,0.048048,104170.0,104150.0,0.04814365]
[1737471191385,0.408853,104160.0,104150.0,8.765e-05]
[1737471191577,0.408853,104160.0,104150.0,0.00014407]
[1737471191887,0.048062,104140.0,104130.0,0.00144025]
[1737471192183,0.048062,104140.0,104130.0,0.048066]
[1737471192376,0.408857,104150.0,104130.0,0.048066]
[1737471192577,0.048057,104150.0,104130.0,0.408866]
[1737471192782,0.3608,104160.0,104140.0,0.048062]
[1737471192978,0.00014407,104150.0,104140.0,0.048062]
[1737471193179,0.40900107,104150.0,104130.0,0.00014407]
[1737471193379,0.408862,104140.0,104120.0,0.1590443]
[1737471193588,0.408862,104140.0,104130.0,0.048066]
[1737471193978,0.408862,104140.0,104120.0,0.6371133]
[1737471194179,0.048066,104130.0,104120.0,0.048069]
[1737471194380,0.408866,104130.0,104110.0,0.20704196]
[1737471194579,0.3608,104120.0,104110.0,0.048076]
[1737471194885,0.048071,104120.0,104110.0,0.048076]
[1737471195073,0.04821007,104130.0,104100.0,0.5415042]
[1737471195282,0.048076,104110.0,104100.0,0.28638324]
[1737471195780,0.048076,104110.0,104100.0,0.00137524]
[1737471196274,0.048076,104110.0,104080.0,0.04818166]
[1737471196275,0.708876,104110.0,104080.0,9.466e-05]
[1737471196480,0.048099,104060.0,104040.0,0.333114]
[1737471196691,0.3608,104050.0,104040.0,0.333114]
[1737471196884,0.408903,104050.0,104040.0,0.285008]
[1737471197680,0.408903,104050.0,104030.0,0.34281851]
[1737471197681,0.048108,104040.0,104030.0,0.34281851]
[1737471197881,0.048117,104020.0,104010.0,0.00154325]
[1737471198089,0.408922,104010.0,104000.0,0.1]
[1737471198280,0.048126,104000.0,103990.0,0.34464257]
[1737471198594,0.04814,103970.0,103960.0,0.87373824]
[1737471199083,0.3211,103990.0,103960.0,1.4415802]
[1737471199381,0.04957256,104000.0,103960.0,0.5197035]
[1737471199580,0.04957256,104000.0,103980.0,0.3608]
[1737471199782,0.04957256,104000.0,103970.0,0.408938]
[1737471200484,0.04971663,104000.0,103970.0,0.40908207]
[1737471200682,0.00158763,104000.0,103970.0,0.36094407]
[1737471200881,0.00158763,104000.0,103970.0,0.00014407]
[1737471201082,0.3608,103990.0,103970.0,0.00014407]
[1737471201385,0.408936,103980.0,103970.0,0.00014407]
[1737471201583,0.61597796,103980.0,103960.0,0.001]
[1737471201783,0.40894,103970.0,103960.0,0.001]
[1737471202175,0.40894,103970.0,103950.0,0.39934917]
[1737471202378,0.3608,103960.0,103950.0,0.39934917]
[1737471202574,0.3608,103960.0,103940.0,0.43]
[1737471202786,0.3608,103960.0,103940.0,0.478153]
[1737471202987,0.36094407,103960.0,103940.0,0.478153]
[1737471203382,0.3608,103950.0,103940.0,0.51729064]
[1737471203576,0.36094407,103960.0,103940.0,0.51729064]
[1737471203782,0.36094407,103960.0,103940.0,0.88009064]
[1737471204191,0.00014407,103960.0,103950.0,0.04815]
[1737471204480,0.00014407,103960.0,103940.0,0.83193764]
[1737471204481,0.36094407,103960.0,103940.0,0.83193764]
[1737471204677,0.3608,103950.0,103940.0,0.47113764]
[1737471204877,0.04817,103910.0,103880.0,48.83664326]
[1737471205086,0.769777,103890.0,103880.0,45.33756864]
[1737471205284,0.769777,103890.0,103880.0,45.01737017]
[1737471205483,1.069777,103890.0,103880.0,44.52765117]
[1737471205678,1.069777,103890.0,103880.0,43.7383754]
[1737471205874,1.407577,103890.0,103880.0,43.18528184]
[1737471206089,1.51355849,103890.0,103880.0,42.22362809]
[1737471206275,1.85505849,103890.0,103880.0,40.57997904]
[1737471206586,1.85505849,103890.0,103880.0,40.46778402]
[1737471206778,1.85505849,103890.0,103880.0,40.44260653]
[1737471206978,1.85505849,103890.0,103880.0,40.08180653]
[1737471207178,1.85505849,103890.0,103880.0,39.47615454]
[1737471207685,1.85505849,103890.0,103880.0,39.44270384]
[1737471207879,1.86472224,103890.0,103880.0,39.1126121]
[1737471208079,1.86472224,103890.0,103880.0,39.07642783]
[1737471208275,1.86472224,103890.0,103880.0,39.07442783]
[1737471208488,1.86772224,103890.0,103880.0,39.0262861]
[1737471208689,1.86772224,103890.0,103880.0,38.86216952]
[1737471208988,1.86772224,103890.0,103880.0,38.50853854]
[1737471209592,1.19725849,103890.0,103880.0,38.50853854]
[1737471209884,1.091277,103890.0,103880.0,39.02853854]
[1737471210285,1.452077,103890.0,103880.0,39.02853854]
[1737471210480,1.85456003,103890.0,103880.0,38.50853854]
[1737471210885,1.85456003,103890.0,103880.0,36.80508784]
[1737471211282,1.85456003,103890.0,103880.0,36.7691095]
[1737471211588,1.85256003,103890.0,103880.0,36.72096777]
[1737471211981,1.85256003,103890.0,103880.0,36.4343368]
[1737471212183,1.85256003,103890.0,103880.0,36.26070426]
[1737471212590,1.55256003,103890.0,103880.0,36.26070426]
[1737471212792,1.19176003,103890.0,103880.0,36.26070426]
[1737471212986,1.089277,103890.0,103880.0,36.26070426]
[1737471213189,1.088277,103890.0,103880.0,33.80856426]
[1737471213383,0.747777,103890.0,103880.0,33.80856426]
[1737471213584,0.386977,103890.0,103880.0,33.80856426]
[1737471213985,1.15503512,103890.0,103880.0,33.80856426]
[1737471214185,1.15503512,103890.0,103880.0,33.77511356]
[1737471214589,1.15503512,103890.0,103880.0,33.52441959]